bitfinex-derivatives/quotes_BNBF0:USTF0_20250331
["timestamp","ask_amount","ask_price","bid_price","bid_amount"]
[1743461034561,0.30414119,604.96,603.79,0.33124099]
[1743461034858,0.30414119,604.95,603.79,0.33124099]
[1743461035059,0.819,605.01,603.79,0.33124099]
[1743461035060,0.59213722,604.94,603.79,0.33124099]
[1743461035560,0.30414119,604.93,603.79,0.33124099]
[1743461037761,0.30414119,604.92,603.79,0.33124099]
[1743461037957,0.30414119,604.91,603.79,0.33124099]
[1743461040163,0.30415354,604.9,603.79,0.33124099]
[1743461040463,0.30415354,604.89,603.79,0.33124099]
[1743461040763,0.30415354,604.88,603.79,0.33124099]
[1743461040963,0.28803297,604.89,603.07,2.52191659]
[1743461041163,0.30415354,604.88,603.07,2.52191659]
[1743461042567,0.30415354,604.88,603.08,1.8486175]
[1743461042767,0.28803297,604.89,603.09,1.8486175]
[1743461042966,0.30415382,604.88,603.1,1.8486175]
[1743461043167,0.30415382,604.88,603.11,1.8486175]
[1743461043364,0.30415382,604.88,603.08,1.8486175]
[1743461043665,0.30415382,604.88,603.07,2.52191659]
[1743461043864,0.30415382,605.0,603.15,2.52191659]
[1743461044063,0.28803655,604.87,603.15,2.52191659]
[1743461044263,0.30415382,604.86,603.15,2.52191659]
[1743461044463,0.3041541,604.85,603.15,2.52191659]
[1743461044668,0.3041541,604.84,603.15,2.52191659]
[1743461044869,0.3041541,604.83,603.15,2.52191659]
[1743461045065,0.3041541,604.82,603.15,2.52191659]
[1743461045465,0.3041541,604.81,603.15,2.52191659]
[1743461045772,0.3041541,604.8,603.12,2.52191659]
[1743461046074,0.3041541,604.79,603.12,2.52191659]
[1743461046269,0.3041541,604.78,603.12,2.52191659]
[1743461046470,0.3041541,604.77,603.12,2.52191659]
[1743461046671,0.3041541,604.85,603.12,2.52191659]
[1743461046972,0.3041541,604.84,603.16,2.52191659]
[1743461047273,0.28801629,604.86,603.16,2.52191659]
[1743461047274,0.3041541,604.83,603.16,2.52191659]
[1743461047464,0.3041541,604.82,603.16,2.52191659]
[1743461047771,0.30415354,604.81,603.17,1.8486175]
[1743461047971,0.30415354,604.85,603.18,1.8486175]
[1743461048178,0.30415354,604.84,603.19,1.8486175]
[1743461048471,0.30415354,604.83,603.18,2.52191659]
[1743461048665,0.30415354,604.85,603.18,2.52191659]
[1743461048870,0.30415354,604.84,603.18,2.52191659]
[1743461049070,0.30415354,604.85,603.18,2.52191659]
[1743461049271,0.30420265,604.84,603.18,2.52191659]
[1743461049466,0.30420265,604.83,603.18,2.52191659]
[1743461049668,0.30420265,604.82,603.18,2.52191659]
[1743461049870,0.30420265,604.81,603.18,2.52191659]
[1743461050070,0.30420265,604.8,603.18,2.52191659]
[1743461050267,0.30420265,604.82,603.2,2.52191659]
[1743461050471,0.30420265,604.81,603.2,2.52191659]
[1743461050672,0.30420265,604.82,603.2,2.52191659]
[1743461051868,0.30420265,604.82,603.17,2.52191659]
[1743461052473,0.819,605.01,603.17,2.52191659]
[1743461052474,0.30419629,604.81,603.17,2.52191659]
[1743461052670,0.30419629,605.0,603.17,2.52191659]
[1743461052974,0.28806874,604.81,603.17,2.52191659]
[1743461053174,0.30419629,604.8,603.17,2.52191659]
[1743461053374,0.30419629,604.79,603.18,1.8486175]
[1743461053576,0.30419629,604.79,603.19,1.8486175]
[1743461053771,0.30419629,604.79,603.2,1.8486175]
[1743461053977,0.30419749,604.78,603.21,1.8486175]
[1743461054277,0.30419749,604.77,603.22,1.8486175]
[1743461054473,0.30419749,604.79,603.23,1.8486175]
[1743461054677,0.30419749,604.79,603.24,1.8486175]
[1743461054870,0.30419749,604.79,603.25,1.8486175]
[1743461055074,0.30419749,604.79,603.26,1.8486175]
[1743461055275,0.30419749,604.79,603.27,1.8486175]
[1743461055473,0.30419749,604.79,603.28,1.8486175]
[1743461055670,0.30419629,604.78,603.29,1.8486175]
[1743461055877,0.30419629,604.77,603.3,1.8486175]
[1743461056078,0.30419629,604.77,603.31,1.8486175]
[1743461056280,0.30419629,604.77,603.32,1.8486175]
[1743461056479,0.30419629,604.77,603.33,1.8486175]
[1743461056780,0.30419629,604.77,603.23,1.8486175]
[1743461056979,0.30419629,604.77,603.24,1.8486175]
[1743461057278,0.30419656,604.76,603.25,1.8486175]
[1743461057479,0.30419656,604.75,603.26,1.8486175]
[1743461057678,0.30419656,604.77,603.27,1.8486175]
[1743461057875,0.30419656,604.76,603.28,1.8486175]
[1743461058078,0.30419656,604.75,603.29,1.8486175]
[1743461058281,0.30419656,604.77,603.3,1.8486175]
[1743461058581,0.30419656,604.76,603.31,1.8486175]
[1743461058778,0.30419656,604.75,603.32,1.8486175]
[1743461058982,0.30419656,604.75,603.33,1.8486175]
[1743461059181,0.30419656,604.75,603.34,1.8486175]
[1743461059484,0.30419656,604.75,603.35,1.8486175]
[1743461059676,0.30419656,604.75,603.36,1.8486175]
[1743461059979,0.30419656,604.75,603.27,1.8486175]
[1743461060179,0.30419656,604.75,603.28,1.8486175]
[1743461060380,0.30419583,604.74,603.29,1.8486175]
[1743461060677,0.30419583,604.73,603.3,1.8486175]
[1743461060876,0.30419583,604.72,603.31,1.8486175]
[1743461061076,0.30419583,604.71,603.32,1.8486175]
[1743461061275,0.30419583,604.75,603.33,1.8486175]
[1743461061476,0.30419583,604.74,603.34,1.8486175]
[1743461061680,0.30419583,604.73,603.35,1.8486175]
[1743461061877,0.30419583,605.0,603.36,1.8486175]
[1743461062076,0.30419583,604.99,603.37,1.8486175]
[1743461062382,0.30419583,604.98,603.38,1.8486175]
[1743461062580,0.30419583,604.97,603.39,1.8486175]
[1743461062779,0.30419583,604.96,603.4,1.8486175]
[1743461062980,0.30419583,604.95,603.25,1.8486175]
[1743461063179,0.30419583,604.94,603.26,1.8486175]
[1743461063381,0.28802463,604.99,603.27,1.8486175]
[1743461063582,0.3041959,604.98,603.28,1.8486175]
[1743461063784,0.3041959,604.98,603.29,1.8486175]
[1743461063978,0.3041959,604.98,603.18,1.8486175]
[1743461064182,0.3041959,604.98,603.19,1.8486175]
[1743461064381,0.3041959,604.98,603.2,1.8486175]
[1743461064578,0.3041959,604.98,603.21,1.8486175]
[1743461064783,0.3041959,604.98,603.22,1.8486175]
[1743461064982,0.3041959,604.98,603.23,1.8486175]
[1743461065179,0.3041959,604.98,603.24,1.8486175]
[1743461065383,0.3041959,604.98,603.25,1.8486175]
[1743461065585,0.3041959,604.98,603.26,1.8486175]
[1743461065785,0.3041959,604.98,603.27,1.8486175]
[1743461065985,0.3041959,604.98,603.28,1.8486175]
[1743461066185,0.3041959,604.98,603.29,1.8486175]
[1743461066388,1.106,604.97,603.3,1.8486175]
[1743461066581,0.3041959,604.96,603.31,1.8486175]
[1743461066885,0.3041959,604.96,603.32,1.8486175]
[1743461067085,0.3041959,604.96,603.33,1.8486175]
[1743461067385,0.3041959,604.96,603.34,1.8486175]
[1743461067587,0.3041959,604.96,603.21,1.8486175]
[1743461067882,0.3041959,604.96,603.22,4.37053409]
[1743461068087,0.28803178,604.95,603.23,1.8486175]
[1743461068386,0.3041959,604.94,603.24,1.8486175]
[1743461068583,0.3041959,604.94,603.25,1.8486175]
[1743461068781,0.3041959,604.94,603.26,1.8486175]
[1743461068983,0.3041959,604.94,603.27,1.8486175]
[1743461069185,0.3041959,604.94,603.28,1.8486175]
[1743461069384,0.3041959,604.94,603.29,1.8486175]
[1743461069586,0.3041959,604.94,603.3,1.8486175]
[1743461069788,0.30418157,604.93,603.31,1.8486175]
[1743461069987,0.30418157,604.92,603.32,1.8486175]
[1743461070188,0.30418157,604.91,603.33,1.8486175]
[1743461070390,0.30418157,604.94,603.34,1.8486175]
[1743461070586,0.30418157,604.93,603.35,1.8486175]
[1743461070787,0.28803417,604.93,603.36,1.8486175]
[1743461070987,0.30418157,604.92,603.37,1.8486175]
[1743461071184,0.28803417,604.93,603.38,1.8486175]
[1743461071488,0.30418129,604.92,603.39,1.8486175]
[1743461071688,0.30418129,604.92,603.4,1.8486175]
[1743461071885,0.30418129,604.92,603.27,1.8486175]
[1743461072190,0.30418129,604.92,602.51,2.51622091]
[1743461072191,0.30418129,604.92,603.28,1.8486175]
[1743461072384,0.30418129,604.92,603.23,2.52191659]
[1743461072385,0.30418129,604.92,603.29,1.8486175]
[1743461072583,0.30418129,604.92,603.3,1.8486175]
[1743461072782,0.30418129,604.92,603.31,1.8486175]
[1743461072985,0.30418129,604.92,603.32,1.8486175]
[1743461073186,0.30418129,604.92,603.33,1.8486175]
[1743461073490,0.30418129,604.92,603.34,1.8486175]
[1743461073688,0.30418129,604.91,603.35,1.8486175]
[1743461073887,0.30418129,604.9,603.36,1.8486175]
[1743461074190,0.30418129,604.9,603.37,1.8486175]
[1743461074391,0.30418129,604.9,603.38,1.8486175]
[1743461074592,0.30418129,604.9,603.39,1.8486175]
[1743461074786,0.30418129,604.9,603.4,1.8486175]
[1743461074986,0.30418129,604.9,603.41,1.8486175]
[1743461075190,0.30418129,604.9,603.42,1.8486175]
[1743461075492,0.30418129,604.9,603.43,1.8486175]
[1743461075688,0.30418129,604.9,603.44,1.8486175]
[1743461075886,0.30418129,604.9,603.45,1.8486175]
[1743461076088,0.30418129,604.9,603.46,1.8486175]
[1743461076287,0.30418129,604.9,603.47,1.8486175]
[1743461076488,0.30418129,604.9,603.48,1.8486175]
[1743461076692,0.30418129,604.89,603.49,1.8486175]
[1743461076892,0.30418129,604.88,603.5,1.8486175]
[1743461077191,0.30418129,604.88,603.51,1.8486175]
[1743461077393,0.30418129,604.88,603.52,1.8486175]
[1743461077693,0.30418129,604.88,603.53,1.8486175]
[1743461077891,0.30418129,604.88,603.54,1.8486175]
[1743461078091,0.30418129,604.88,603.55,1.8486175]
[1743461078394,0.30418129,604.88,603.56,1.8486175]
[1743461078590,0.30418129,604.88,603.57,1.8486175]
[1743461078890,0.30418129,604.88,603.35,2.52191659]
[1743461079193,0.30418129,604.88,603.36,1.8486175]
[1743461079394,0.30418129,604.88,603.37,1.8486175]
[1743461079589,0.30418129,604.88,603.38,1.8486175]
[1743461079789,0.59223215,604.87,603.39,1.8486175]
[1743461079990,0.30418129,604.86,603.36,1.8486175]
[1743461080188,0.30418129,604.86,603.37,1.8486175]
[1743461080499,0.30418129,604.86,603.38,1.8486175]
[1743461080692,0.28805086,604.87,603.39,1.8486175]
[1743461080893,0.30420992,604.86,603.4,1.8486175]
[1743461081193,0.30420992,604.86,603.41,1.8486175]
[1743461081395,0.30420992,604.86,603.42,1.8486175]
[1743461081590,0.30420992,604.86,603.43,1.8486175]
[1743461081790,0.30420992,604.86,603.44,1.8486175]
[1743461081990,0.30420992,604.86,603.45,1.8486175]
[1743461082189,0.30420992,604.86,603.46,1.8486175]
[1743461082390,0.30420992,604.85,603.47,1.8486175]
[1743461082595,0.30420992,604.86,603.28,1.8486175]
[1743461082791,0.28804251,604.84,603.29,1.8486175]
[1743461082996,0.30420992,604.83,603.28,1.8486175]
[1743461083298,0.30420992,604.83,603.27,2.52191659]
[1743461084497,0.30420992,604.83,603.2,1.8486175]
[1743461084698,0.30420992,604.83,603.21,1.8486175]
[1743461084998,0.30420992,604.83,603.22,1.8486175]
[1743461085199,0.30420992,604.83,603.17,1.8486175]
[1743461085398,0.30420992,604.83,603.18,1.8486175]
[1743461085602,0.30422841,604.82,603.19,1.8486175]
[1743461085796,0.30422841,604.82,603.16,2.52191659]
[1743461085797,0.30422841,604.83,603.17,1.8486175]
[1743461086002,0.30422841,604.82,603.18,1.8486175]
[1743461086303,0.30422841,604.81,603.17,1.8486175]
[1743461086601,0.30422841,604.8,603.16,1.8486175]
[1743461086796,0.30422841,604.83,603.17,1.8486175]
[1743461087003,0.30422841,604.82,603.18,1.8486175]
[1743461087203,0.30422841,604.83,603.19,1.8486175]
[1743461087397,0.30422841,604.82,603.16,1.8486175]
[1743461087601,0.30422841,604.81,603.17,1.8486175]
[1743461087797,0.30422841,604.8,603.18,1.8486175]
[1743461088001,0.30422841,604.79,603.19,1.8486175]
[1743461088302,0.30422841,604.78,603.1,1.8486175]
[1743461088502,0.30422841,604.77,603.11,4.37053409]
[1743461088695,0.30422841,604.83,603.12,1.8486175]
[1743461088895,0.30422841,604.83,603.13,1.8486175]
[1743461089096,0.30422841,604.83,603.14,1.8486175]
[1743461089296,0.30422841,604.83,603.15,1.8486175]
[1743461089503,0.30422841,604.83,603.16,1.8486175]
[1743461089702,0.30422841,604.83,603.17,1.8486175]
[1743461090003,0.30422841,604.83,603.18,1.8486175]
[1743461090203,0.30422841,604.83,603.19,1.8486175]
[1743461090400,0.30422841,604.83,603.2,1.8486175]
[1743461090597,0.30422841,604.83,603.21,1.8486175]
[1743461090903,0.30422841,604.83,603.22,1.8486175]
[1743461091104,0.30422841,604.83,603.23,1.8486175]
[1743461091304,0.30422841,604.83,603.24,1.8486175]
[1743461091604,0.30422841,604.83,603.25,1.8486175]
[1743461091803,0.28807351,604.82,603.13,1.8486175]
[1743461091998,0.28807351,604.82,603.14,1.8486175]
[1743461092201,0.30423159,604.81,603.15,1.8486175]
[1743461092403,0.30423159,604.81,603.16,1.8486175]
[1743461092603,0.30423159,604.81,603.17,1.8486175]
[1743461092802,0.30423159,604.81,603.18,1.8486175]
[1743461093003,0.30423159,604.8,603.19,1.8486175]
[1743461093201,0.30423159,604.8,603.12,2.52191659]
[1743461093202,0.30423159,604.79,603.2,1.8486175]
[1743461093398,0.28807351,604.82,603.21,1.8486175]
[1743461093699,0.30423184,604.81,603.22,1.8486175]
[1743461093902,0.30423184,604.81,603.23,1.8486175]
[1743461094102,0.30423184,604.81,603.24,1.8486175]
[1743461094302,0.30423184,604.81,603.25,1.8486175]
[1743461094503,0.30423184,604.81,602.39,2.51622091]
[1743461094504,0.30423184,604.81,603.26,1.8486175]
[1743461094703,0.30423184,604.8,603.27,1.8486175]
[1743461094904,0.30423184,604.79,603.28,1.8486175]
[1743461095203,0.30423184,604.79,603.29,1.8486175]
[1743461095405,0.30423184,604.79,603.3,1.8486175]
[1743461095599,0.30423184,604.79,603.31,1.8486175]
[1743461095800,0.30423184,604.79,603.32,1.8486175]
[1743461096002,1.16,604.78,603.33,1.8486175]
[1743461096200,0.30423184,604.77,603.34,1.8486175]
[1743461096412,0.30423184,604.77,603.21,1.8486175]
[1743461096705,0.30423184,604.77,603.07,1.8486175]
[1743461096905,0.30423184,604.77,602.94,1.8486175]
[1743461097308,0.30423184,604.77,602.93,2.52191659]
[1743461097807,0.28814149,604.76,602.93,2.52191659]
[1743461098007,0.30423184,604.75,602.93,2.52191659]
[1743461098207,0.30423184,604.75,602.82,2.52191659]
[1743461099810,0.28814149,604.76,602.79,2.52191659]
[1743461100110,0.30429527,604.75,602.79,2.52191659]
[1743461100809,0.59247255,604.74,602.79,2.52191659]
[1743461101110,0.30429808,604.73,602.79,2.52191659]
[1743461101306,0.30429808,604.73,602.76,2.52191659]
[1743461102010,0.30429808,604.73,602.77,1.8486175]
[1743461102206,0.30429808,604.72,602.78,1.8486175]
[1743461102413,0.30429808,604.73,602.79,1.8486175]
[1743461102710,0.30429808,604.72,602.8,1.8486175]
[1743461102915,0.30429808,604.71,602.81,1.8486175]
[1743461103105,0.30429808,604.7,602.82,1.8486175]
[1743461103306,0.30429808,604.73,602.84,2.52191659]
[1743461103510,0.30429808,604.72,602.85,1.8486175]
[1743461103705,0.30429808,604.71,602.86,1.8486175]
[1743461104005,0.30429808,604.7,602.87,1.8486175]
[1743461104206,0.28819756,604.72,602.19,2.51622091]
[1743461104207,0.30434859,604.69,602.88,1.8486175]
[1743461104409,0.30434859,604.71,602.89,1.8486175]
[1743461104609,0.30434859,604.7,602.9,1.8486175]
[1743461104809,0.30434859,604.69,602.91,1.8486175]
[1743461105007,0.30434859,604.68,602.92,1.8486175]
[1743461105211,0.30434859,604.67,602.93,1.8486175]
[1743461105405,0.30434859,604.71,602.94,1.8486175]
[1743461105611,0.30434859,604.71,602.64,2.51622091]
[1743461105612,0.30434859,604.7,602.95,1.8486175]
[1743461105813,0.30435031,604.69,602.96,1.8486175]
[1743461106007,0.30435031,604.68,602.97,1.8486175]
[1743461106216,0.30435031,604.67,602.78,1.8486175]
[1743461106515,0.30435031,604.66,602.79,1.8486175]
[1743461106812,0.30435031,604.65,602.8,1.8486175]
[1743461107011,0.30435031,604.65,602.81,1.8486175]
[1743461107213,0.30435031,604.65,602.82,1.8486175]
[1743461107413,0.30434494,604.64,602.83,1.8486175]
[1743461107616,0.28820711,604.66,602.84,1.8486175]
[1743461107617,0.30434494,604.63,602.84,1.8486175]
[1743461107914,0.30434494,604.62,602.85,1.8486175]
[1743461108108,0.30434494,604.65,602.86,1.8486175]
[1743461108314,0.28820711,604.66,602.87,1.8486175]
[1743461108315,0.30434494,604.64,602.87,1.8486175]
[1743461108507,0.30434494,604.65,602.88,1.8486175]
[1743461108713,0.30434494,604.64,602.89,1.8486175]
[1743461108915,0.28820711,604.66,602.9,1.8486175]
[1743461109110,0.30434812,604.65,602.91,1.8486175]
[1743461109312,0.30434812,604.65,602.92,1.8486175]
[1743461109514,0.30434812,604.65,602.74,1.8486175]
[1743461109714,0.30434812,604.77,602.75,1.8486175]
[1743461109916,0.28819756,604.64,602.76,1.8486175]
[1743461110215,0.30434812,604.63,602.77,1.8486175]
[1743461110415,0.30434812,604.62,602.78,1.8486175]
[1743461110616,0.30434812,604.62,602.79,1.8486175]
[1743461110912,0.30434812,604.62,602.8,1.8486175]
[1743461111114,0.30434812,604.62,602.81,1.8486175]
[1743461111314,0.30434812,604.62,602.82,1.8486175]
[1743461111514,0.30434812,604.62,602.83,1.8486175]
[1743461111714,0.30434812,604.62,602.84,1.8486175]
[1743461111911,0.30434812,604.62,602.85,1.8486175]
[1743461112118,0.30434812,604.61,602.86,1.8486175]
[1743461112416,0.30434812,604.6,602.87,1.8486175]
[1743461112616,0.30434812,604.59,602.88,1.8486175]
[1743461112815,0.30434812,604.58,602.89,1.8486175]
[1743461113018,0.30434812,604.57,602.9,1.8486175]
[1743461113218,0.30434812,604.58,602.91,1.8486175]
[1743461113411,0.30434812,604.57,602.92,1.8486175]
[1743461113614,0.30434812,604.56,602.93,1.8486175]
[1743461113815,0.30434823,604.55,602.94,1.8486175]
[1743461114015,0.30434823,604.54,602.95,1.8486175]
[1743461114213,0.30434823,604.58,602.96,1.8486175]
[1743461114413,0.30434823,604.57,602.87,1.8486175]
[1743461114618,0.28820711,604.59,602.87,1.8486175]
[1743461114812,0.28820711,604.59,602.86,2.52191659]
[1743461115419,0.28820711,604.59,602.87,1.8486175]
[1743461115616,1.16,604.78,602.87,1.8486175]
[1743461115815,0.30422402,604.77,602.87,1.8486175]
[1743461116022,0.28811048,604.58,602.87,1.8486175]
[1743461116216,1.16,604.78,602.88,1.8486175]
[1743461116415,0.30422233,604.77,602.82,1.8486175]
[1743461116620,0.28811167,604.57,602.83,1.8486175]
[1743461116822,1.16,604.78,602.84,1.8486175]
[1743461117122,0.28811644,604.56,602.85,1.8486175]
[1743461117320,0.28811644,604.56,602.82,1.8486175]
[1743461117519,1.16,604.78,602.83,1.8486175]
[1743461117721,0.28811405,604.55,602.84,1.8486175]
[1743461117918,0.28811405,604.55,602.85,1.8486175]
[1743461118116,0.28811405,604.55,602.32,2.51622091]
[1743461118117,1.16,604.78,602.86,1.8486175]
[1743461118320,0.28811525,604.54,602.87,1.8486175]
[1743461118623,1.16,604.78,602.88,1.8486175]
[1743461118824,0.30422175,604.77,602.89,1.8486175]
[1743461119020,0.28811167,604.53,602.9,1.8486175]
[1743461119217,1.16,604.78,602.92,0.33171896]
[1743461119421,0.30422182,604.77,602.93,1.8486175]
[1743461119623,0.28810809,604.52,602.95,0.33170246]
[1743461119923,1.16,604.78,602.96,1.8486175]
[1743461120122,0.28810332,604.52,602.98,0.33168595]
[1743461120321,0.28810332,604.52,602.99,1.8486175]
[1743461120518,1.16,604.78,603.01,0.33166945]
[1743461120822,0.28809974,604.52,603.02,1.8486175]
[1743461121025,1.16,604.78,603.04,0.33165295]
[1743461121325,0.28809378,604.52,603.04,2.18027045]
[1743461121524,0.28809378,604.52,603.05,1.8486175]
[1743461121825,1.16,604.78,603.07,0.33163646]
[1743461122025,0.28809139,604.52,603.07,0.33163646]
[1743461122225,1.16,604.78,603.07,0.33163646]
[1743461122420,0.30423704,604.77,603.07,0.33163646]
[1743461122622,0.28811644,604.51,603.07,0.33163646]
[1743461122826,1.16,604.78,603.07,0.33163646]
[1743461123026,0.30423759,604.77,603.07,0.33163646]
[1743461123327,0.30423745,604.76,603.07,0.33163646]
[1743461123626,0.30423745,604.75,603.07,0.33163646]
[1743461123928,0.30423745,604.75,603.08,1.8486175]
[1743461124131,0.30423745,604.75,603.09,1.8486175]
[1743461124322,0.30423745,604.74,603.11,0.33161446]
[1743461124527,0.30423745,604.73,603.12,1.8486175]
[1743461124726,1.16,604.78,602.92,2.52191659]
[1743461124727,0.30423745,604.72,603.14,0.33159797]
[1743461124925,0.30428186,604.71,603.14,0.33159797]
[1743461125122,0.30428186,604.72,603.14,0.33159797]
[1743461125322,0.30428186,604.71,603.14,0.33159797]
[1743461125635,0.30428186,604.7,603.14,0.33159797]
[1743461125825,0.30428186,604.69,603.14,0.33159797]
[1743461126021,0.30428186,604.72,603.14,0.33159797]
[1743461126326,0.30428186,604.71,603.14,0.33159797]
[1743461126526,0.28812837,604.73,603.14,0.33159797]
[1743461126729,0.30428136,604.72,603.14,0.33159797]
[1743461127830,0.59242046,604.71,603.14,0.33159797]
[1743461128128,0.30428136,604.7,603.15,1.8486175]
[1743461128331,0.30428136,604.7,603.17,0.33158147]
[1743461129828,0.30428163,604.69,603.17,0.33158147]
[1743461130028,0.30428163,604.7,603.17,0.33158147]
[1743461130329,0.30428163,604.69,603.17,0.33158147]
[1743461130528,0.30428163,604.68,603.17,0.33158147]
[1743461130730,0.30428163,604.67,603.17,0.33158147]
[1743461130930,0.30428163,604.77,603.17,0.33158147]
[1743461131131,0.28813433,604.67,603.17,0.33158147]
[1743461131327,1.16,604.78,603.17,0.33158147]
[1743461131523,0.30428163,604.77,603.17,0.33158147]
[1743461131729,0.28813314,604.66,603.17,0.33158147]
[1743461132029,0.30428163,604.65,603.17,0.33158147]
[1743461132226,0.30428163,604.77,603.17,0.33158147]
[1743461132426,0.28812837,604.65,603.17,0.33158147]
[1743461132631,0.30428163,604.64,603.17,0.33158147]
[1743461133031,0.30428163,604.63,603.17,0.33158147]
[1743461133427,0.30428163,604.63,603.17,2.18019897]
[1743461133625,1.16,604.78,603.18,1.8486175]
[1743461133626,0.30428163,604.77,603.18,1.8486175]
[1743461133834,0.28813552,604.62,603.2,0.33156498]
[1743461134132,0.30428163,604.61,603.21,1.8486175]
[1743461134433,0.28811763,604.61,603.23,0.33154849]
[1743461134633,0.30428191,604.6,603.24,1.8486175]
[1743461134835,0.30428191,604.6,603.26,0.331532]
[1743461135033,0.30428191,604.6,603.27,1.8486175]
[1743461135234,0.30428191,604.6,603.29,0.33151552]
[1743461135436,0.28811763,604.61,603.3,1.8486175]
[1743461135637,0.30428207,604.6,603.32,0.33149903]
[1743461135838,0.30428207,604.6,603.33,1.8486175]
[1743461136040,0.28811763,604.61,603.35,0.33148255]
[1743461136239,0.30428165,604.6,603.35,0.33148255]
[1743461136833,0.59243268,604.59,603.35,0.33148255]
[1743461137037,0.30428165,604.58,603.35,0.33148255]
[1743461139342,0.30428165,604.58,603.36,1.8486175]
[1743461139543,0.30428165,604.58,603.38,0.33146607]
[1743461139837,1.16,604.78,603.38,0.33146607]
[1743461139838,0.30428165,604.57,603.38,0.33146607]
[1743461140040,0.30428165,604.56,603.38,0.33146607]
[1743461142836,0.30428165,604.55,603.38,0.33146607]
[1743461143036,0.28811525,604.55,603.38,0.33146607]
[1743461143244,0.30428165,604.54,603.38,0.33146607]
[1743461145644,0.30428204,604.53,603.38,0.33146607]
[1743461145843,0.28812598,604.53,603.38,0.33146607]
[1743461146039,0.30428204,604.52,603.38,0.33146607]
[1743461147347,0.30428177,604.51,603.38,0.33146607]
[1743461147544,0.30428177,604.52,603.38,0.33146607]
[1743461147747,0.30428177,604.51,603.38,0.33146607]
[1743461148047,0.30428177,604.5,603.38,0.33146607]
[1743461148241,0.30428177,604.52,603.38,0.33146607]
[1743461148446,0.30428177,604.51,603.38,0.33146607]
[1743461148746,0.30428177,604.5,603.38,0.33146607]
[1743461148946,0.30428177,604.49,603.38,0.33146607]
[1743461150543,0.30428177,604.49,603.39,1.8486175]
[1743461150745,0.30428177,604.49,603.4,2.18007258]
[1743461150941,0.30428177,604.49,603.41,0.33144959]
[1743461151742,0.30428177,604.96,603.41,0.33144959]
[1743461152044,0.28816057,604.48,603.41,0.33144959]
[1743461152243,0.30428177,604.47,603.41,0.33144959]
[1743461152448,0.30428177,604.46,603.41,0.33144959]
[1743461153348,0.30428177,604.46,603.42,1.8486175]
[1743461153550,1.11,604.47,603.43,0.3314386]
[1743461153747,0.30427552,604.46,603.43,0.3314386]
[1743461154849,0.28815819,604.45,603.43,0.3314386]
[1743461155044,0.30427552,604.44,603.43,0.3314386]
[1743461156451,0.30427552,604.44,603.44,1.8486175]
[1743461156651,0.30427552,604.44,603.45,0.33142762]
[1743461157846,0.30427552,604.43,603.45,0.33142762]
[1743461158052,0.30427552,604.42,603.45,0.33142762]
[1743461160154,0.30427576,604.41,603.45,0.33142762]
[1743461160353,0.30427576,604.42,603.45,0.33142762]
[1743461160753,0.30427576,604.46,603.45,0.33142762]
[1743461160953,0.28814387,604.41,603.45,0.33142762]
[1743461161154,0.30427576,604.4,603.45,0.33142762]
[1743461161755,0.30427576,604.46,603.45,0.33142762]
[1743461161956,0.2881558,604.39,603.45,0.33142762]
[1743461162156,0.30427576,604.38,603.45,0.33142762]
[1743461164462,0.30427576,604.38,603.45,2.18004512]
[1743461164665,0.30427576,604.38,603.45,0.33142762]
[1743461166363,0.30427576,604.38,603.46,1.8486175]
[1743461166564,0.30427576,604.38,603.47,0.33141664]
[1743461167564,0.30427597,604.37,603.47,0.33141664]
[1743461167764,0.30427597,604.36,603.47,0.33141664]
[1743461167964,0.2881558,604.39,603.47,0.33141664]
[1743461168265,0.30427574,604.38,603.47,0.33141664]
[1743461169057,2.51031067,604.86,603.47,0.33141664]
[1743461169263,2.81459291,604.85,603.47,0.33141664]
[1743461169457,0.30428224,604.84,603.47,0.33141664]
[1743461170661,0.972,604.83,603.47,0.33141664]
[1743461170861,0.30428205,604.82,603.47,0.33141664]
[1743461172267,0.28813075,604.81,603.47,0.33141664]
[1743461172767,0.30428349,604.8,603.47,0.33141664]
[1743461175165,0.30428349,604.82,603.47,0.33141664]
[1743461175366,0.28812956,604.79,603.47,0.33141664]
[1743461175667,0.3042802,604.78,603.47,0.33141664]
[1743461178269,0.3042802,604.77,603.47,0.33141664]
[1743461178465,0.28811882,604.77,603.47,0.33141664]
[1743461178667,0.3042802,604.76,603.47,0.33141664]
[1743461178969,0.30428027,604.75,603.47,0.33141664]
[1743461179164,0.30428027,604.74,603.47,0.33141664]
[1743461179364,0.30428027,604.73,603.47,0.33141664]
[1743461179566,0.30428027,604.72,603.47,0.33141664]
[1743461179766,0.30428027,604.71,603.47,0.33141664]
[1743461179969,0.30428027,604.7,603.47,0.33141664]
[1743461180270,0.30428027,604.69,603.47,0.33141664]
[1743461180467,0.30427986,604.68,603.47,0.33141664]
[1743461180768,0.30427986,604.67,603.47,0.33141664]
[1743461180963,0.30427986,604.66,603.47,0.33141664]
[1743461181169,0.30427986,604.65,603.47,0.33141664]
[1743461181566,0.30427986,604.64,603.47,0.33141664]
[1743461184168,0.30427986,604.63,603.47,0.33141664]
[1743461184372,0.30427986,604.82,603.47,0.33141664]
[1743461184572,0.28809497,604.63,603.47,0.33141664]
[1743461184769,0.30427986,604.62,603.47,0.33141664]